fUST/lending_fUST_20250312
["ID","MTS","AMOUNT","RATE_DAILY","PERIOD"]
[356000672,1741791048524,-862.58,0.00023287,2]
[356000673,1741791048534,-1093.17,0.00023287,2]
[356000674,1741791048543,-260.32,0.00023287,2]
[356000675,1741791048555,-500.0,0.00023287,2]
[356000676,1741791048565,-500.0,0.00023287,2]
[356000677,1741791048575,-500.0,0.00023287,2]
[356000678,1741791048584,-624.56,0.00023287,2]
[356000679,1741791048594,-784.42,0.00023287,2]
[356000680,1741791048604,-500.0,0.00023287,2]
[356000681,1741791048613,-500.0,0.00023287,2]
[356000682,1741791048622,-546.45,0.00023287,2]
[356000683,1741791048631,-1192.06,0.00023287,2]
[356000684,1741791048640,-500.0,0.00023287,2]
[356000685,1741791048650,-1228.55,0.00023287,2]
[356000686,1741791048660,-869.92,0.00023287,2]
[356000687,1741791048669,-500.0,0.00023287,2]
[356000688,1741791048679,-500.0,0.00023287,2]
[356000689,1741791048688,-731.19,0.00023287,2]
[356000690,1741791048698,-500.0,0.00023287,2]
[356000691,1741791048708,-500.0,0.00023287,2]
[356000692,1741791048717,-567.86,0.00023287,2]
[356000693,1741791048727,-500.0,0.00023287,2]
[356000694,1741791048736,-751.38,0.00023287,2]
[356000695,1741791048746,-500.0,0.00023287,2]
[356000696,1741791048755,-500.0,0.00023287,2]
[356000697,1741791048765,-500.0,0.00023287,2]
[356000698,1741791048775,-664.93,0.00023287,2]
[356000699,1741791048785,-178.10453145,0.00023287,2]
[356000700,1741791048794,-500.0,0.00023287,2]
[356000701,1741791048805,-1999.74,0.00023287,2]
[356000702,1741791048815,-500.0,0.00023287,2]
[356000703,1741791048825,-593.6,0.00023287,2]
[356000704,1741791048835,-1113.38,0.00023287,2]
[356000705,1741791048961,-500.0,0.00023287,2]
[356000706,1741791048972,-569.98,0.00023287,2]
[356000707,1741791048982,-500.0,0.00023287,2]
[356000708,1741791048991,-20933.39,0.00023287,2]
[356000709,1741791049001,-948.89,0.00023287,2]
[356000710,1741791049010,-500.0,0.00023287,2]
[356000711,1741791049020,-500.0,0.00023287,2]
[356000712,1741791049030,-628.97,0.00023287,2]
[356000713,1741791049040,-886.76,0.00023287,2]
[356000714,1741791049052,-1936.07,0.00023287,2]
[356000715,1741791049062,-1000.0,0.00023287,7]
[356000716,1741791049072,-1095.81,0.00023287,2]
[356000717,1741791049082,-931.19,0.00023287,2]
[356000718,1741791049092,-931.69,0.00023287,2]
[356000719,1741791049101,-325.94339546,0.00023287,2]
[356000720,1741791049111,-1444.78,0.00023287,2]
[356000721,1741791049121,-245.2888388,0.00023287,2]
[356000722,1741791049131,-500.0,0.00023287,2]
[356000723,1741791049141,-791.66,0.00023287,2]
[356000724,1741791049151,-500.0,0.00023287,2]
[356000725,1741791049160,-2945.61,0.00023287,2]
[356000726,1741791049170,-389.98949291,0.00023287,2]
[356000727,1741791049180,-500.0,0.00023287,2]
[356000728,1741791049189,-500.0,0.00023287,2]
[356000729,1741791049199,-24632.72,0.00023287,2]
[356000730,1741791049208,-815.66,0.00023287,2]
[356000731,1741791049219,-500.0,0.00023287,2]
[356000732,1741791049228,-500.0,0.00023287,2]
[356000733,1741791049237,-500.0,0.00023287,2]
[356000734,1741791049247,-770.45,0.00023287,2]
[356000735,1741791049256,-500.0,0.00023287,2]
[356000736,1741791049265,-500.0,0.00023287,2]
[356000737,1741791049275,-6470.55,0.00023287,2]
[356000738,1741791049284,-808.52,0.00023287,2]
[356000739,1741791049294,-1766.1,0.00023287,2]
[356000740,1741791049305,-500.0,0.00023314,2]
[356000741,1741791049315,-500.0,0.00023314,2]
[356000742,1741791049325,-500.0,0.00023318,2]
[356000743,1741791049335,-364.76,0.00023525,4]
[356000744,1741791049344,-500.0,0.00023561,2]
[356000745,1741791049353,-774.16,0.00023561,2]
[356000746,1741791049363,-175.31412188,0.00023561,4]
[356000747,1741791049376,-500.0,0.00023561,2]
[356000748,1741791049385,-500.0,0.00023561,2]
[356000749,1741791049394,-500.0,0.00023561,2]
[356000750,1741791049404,-500.0,0.00023561,2]
[356000751,1741791049415,-500.0,0.00023561,2]
[356000752,1741791049424,-500.0,0.00023561,2]
[356000753,1741791049433,-862.58,0.00023561,2]
[356000754,1741791049443,-1093.17,0.00023561,2]
[356000755,1741791049453,-500.0,0.00023561,2]
[356000756,1741791049462,-500.0,0.00023561,2]
[356000757,1741791049471,-500.0,0.00023561,2]
[356000758,1741791049480,-624.56,0.00023561,2]
[356000759,1741791049489,-784.42,0.00023561,2]
[356000760,1741791049499,-500.0,0.00023561,2]
[356000761,1741791049508,-500.0,0.00023561,2]
[356000762,1741791049517,-546.45,0.00023561,2]
[356000763,1741791049526,-1192.06,0.00023561,2]
[356000764,1741791049536,-500.0,0.00023561,2]
[356000765,1741791049545,-1228.55,0.00023561,2]
[356000766,1741791049556,-869.92,0.00023561,2]
[356000767,1741791049565,-500.0,0.00023561,2]
[356000768,1741791049575,-500.0,0.00023561,2]
[356000769,1741791049584,-731.19,0.00023561,2]
[356000770,1741791049594,-500.0,0.00023561,2]
[356000771,1741791049603,-500.0,0.00023561,2]
[356000772,1741791049612,-567.86,0.00023561,2]
[356000773,1741791049622,-500.0,0.00023561,2]
[356000774,1741791049631,-751.38,0.00023561,2]
[356000775,1741791049641,-500.0,0.00023561,2]
[356000776,1741791049650,-500.0,0.00023561,2]
[356000777,1741791049659,-500.0,0.00023561,2]
[356000778,1741791049668,-664.93,0.00023561,2]
[356000779,1741791049677,-500.0,0.00023561,2]
[356000780,1741791049686,-1999.74,0.00023561,2]
[356000781,1741791049696,-500.0,0.00023561,2]
[356000782,1741791049705,-593.6,0.00023561,2]
[356000783,1741791049714,-1113.38,0.00023561,2]
[356000784,1741791049723,-500.0,0.00023561,2]
[356000785,1741791049732,-569.98,0.00023561,2]
[356000786,1741791049741,-196.10961402,0.00023561,2]
[356000787,1741791049751,-20933.39,0.00023561,2]
[356000788,1741791049760,-948.89,0.00023561,2]
[356000789,1741791049770,-500.0,0.00023561,2]
[356000790,1741791049779,-500.0,0.00023561,2]
[356000791,1741791049789,-628.97,0.00023561,2]
[356000792,1741791049799,-886.76,0.00023561,2]
[356000793,1741791049808,-1936.07,0.00023561,2]
[356000794,1741791049817,-1000.0,0.00023561,7]
[356000795,1741791049826,-1095.81,0.00023561,2]
[356000796,1741791049835,-931.19,0.00023561,2]
[356000797,1741791049844,-931.69,0.00023561,2]
[356000798,1741791049854,-1444.78,0.00023561,2]
[356000799,1741791049863,-500.0,0.00023561,2]
[356000800,1741791049873,-791.66,0.00023561,2]
[356000801,1741791049882,-400.58962628,0.00023561,2]
[356000802,1741791049891,-2945.61,0.00023561,2]
[356000803,1741791049901,-500.0,0.00023561,2]
[356000804,1741791049910,-500.0,0.00023561,2]
[356000805,1741791049919,-24632.72,0.00023561,2]
[356000806,1741791049929,-815.66,0.00023561,2]
[356000807,1741791049938,-500.0,0.00023561,2]
[356000808,1741791049948,-500.0,0.00023561,2]
[356000809,1741791049957,-500.0,0.00023561,2]
[356000810,1741791049967,-770.45,0.00023561,2]
[356000811,1741791049976,-500.0,0.00023561,2]
[356000812,1741791049986,-500.0,0.00023561,2]
[356000813,1741791049995,-6470.55,0.00023561,2]
[356000814,1741791050005,-808.52,0.00023561,2]
[356000815,1741791050015,-1766.1,0.00023561,2]
[356000816,1741791050024,-1152.0,0.00023596,2]
[356000817,1741791050034,-151.0,0.000236,5]
[356000818,1741791050044,-500.0,0.00023835,2]
[356000819,1741791050056,-774.16,0.00023835,2]
[356000820,1741791050066,-500.0,0.00023835,2]
[356000821,1741791050075,-500.0,0.00023835,2]
[356000822,1741791050084,-500.0,0.00023835,2]
[356000823,1741791050094,-500.0,0.00023835,2]
[356000824,1741791050104,-500.0,0.00023835,2]
[356000825,1741791050113,-500.0,0.00023835,2]
[356000826,1741791050122,-862.58,0.00023835,2]
[356000827,1741791050132,-1093.17,0.00023835,2]
[356000828,1741791050142,-500.0,0.00023835,2]
[356000829,1741791050152,-500.0,0.00023835,2]
[356000830,1741791050162,-500.0,0.00023835,2]
[356000831,1741791050173,-624.56,0.00023835,2]
[356000832,1741791050182,-784.42,0.00023835,2]
[356000833,1741791050191,-500.0,0.00023835,2]
[356000834,1741791050201,-500.0,0.00023835,2]
[356000835,1741791050210,-546.45,0.00023835,2]
[356000836,1741791050219,-1192.06,0.00023835,2]
[356000837,1741791050228,-500.0,0.00023835,2]
[356000838,1741791050238,-1228.55,0.00023835,2]
[356000839,1741791050248,-869.92,0.00023835,2]
[356000840,1741791050258,-500.0,0.00023835,2]
[356000841,1741791050268,-500.0,0.00023835,2]
[356000842,1741791050277,-731.19,0.00023835,2]
[356000843,1741791050287,-500.0,0.00023835,2]
[356000844,1741791050296,-500.0,0.00023835,2]
[356000845,1741791050307,-567.86,0.00023835,2]
[356000846,1741791050316,-500.0,0.00023835,2]
[356000847,1741791050325,-751.38,0.00023835,2]
[356000848,1741791050335,-500.0,0.00023835,2]
[356000849,1741791050345,-500.0,0.00023835,2]
[356000850,1741791050354,-500.0,0.00023835,2]
[356000851,1741791050363,-664.93,0.00023835,2]
[356000852,1741791050377,-500.0,0.00023835,2]
[356000853,1741791050386,-1999.74,0.00023835,2]
[356000854,1741791050396,-500.0,0.00023835,2]
[356000855,1741791050407,-593.6,0.00023835,2]
[356000856,1741791050416,-1113.38,0.00023835,2]
[356000857,1741791050425,-500.0,0.00023835,2]
[356000858,1741791050434,-569.98,0.00023835,2]
[356000859,1741791050444,-20933.39,0.00023835,2]
[356000860,1741791050454,-948.89,0.00023835,2]
[356000861,1741791050463,-500.0,0.00023835,2]
[356000862,1741791050472,-500.0,0.00023835,2]
[356000863,1741791050482,-628.97,0.00023835,2]
[356000864,1741791050491,-886.76,0.00023835,2]
[356000865,1741791050500,-1936.07,0.00023835,2]
[356000866,1741791050509,-1000.0,0.00023835,7]
[356000867,1741791050519,-1095.81,0.00023835,2]
[356000868,1741791050528,-931.19,0.00023835,2]
[356000869,1741791050538,-931.69,0.00023835,2]
[356000870,1741791050549,-1444.78,0.00023835,2]
[356000871,1741791050558,-500.0,0.00023835,2]
[356000872,1741791050567,-791.66,0.00023835,2]
[356000873,1741791050577,-2945.61,0.00023835,2]
[356000874,1741791050586,-500.0,0.00023835,2]
[356000875,1741791050595,-500.0,0.00023835,2]
[356000876,1741791050605,-24632.72,0.00023835,2]
[356000877,1741791050614,-815.66,0.00023835,2]
[356000878,1741791050624,-500.0,0.00023835,2]
[356000879,1741791050633,-500.0,0.00023835,2]
[356000880,1741791050642,-220.13275433,0.00023835,2]
[356000881,1741791050651,-770.45,0.00023835,2]
[356000882,1741791050661,-500.0,0.00023835,2]
[356000883,1741791050670,-500.0,0.00023835,2]
[356000884,1741791050679,-6470.55,0.00023835,2]
[356000885,1741791050689,-808.52,0.00023835,2]
[356000886,1741791050698,-308.0,0.000239,11]
[356000887,1741791050707,-1506.82113586,0.00023934,3]
[356000888,1741791050717,-1499.999999,0.00024,2]
[356000889,1741791050727,-3000.0,0.00024009,2]
[356000890,1741791050736,-500.0,0.00024109,2]
[356000891,1741791050746,-774.16,0.00024109,2]
[356000892,1741791050755,-500.0,0.00024109,2]
[356000893,1741791050765,-500.0,0.00024109,2]
[356000894,1741791050774,-323.78328426,0.00024109,2]
[356000895,1741791050783,-500.0,0.00024109,2]
[356000896,1741791050793,-500.0,0.00024109,2]
[356000897,1741791050805,-500.0,0.00024109,2]
[356000898,1741791050814,-862.58,0.00024109,2]
[356000899,1741791050824,-1093.17,0.00024109,2]
[356000900,1741791050833,-500.0,0.00024109,2]
[356000901,1741791050843,-500.0,0.00024109,2]
[356000902,1741791050853,-500.0,0.00024109,2]
[356000903,1741791050862,-624.56,0.00024109,2]
[356000904,1741791050872,-784.42,0.00024109,2]
[356000905,1741791050882,-500.0,0.00024109,2]
[356000906,1741791050892,-500.0,0.00024109,2]
[356000907,1741791050902,-546.45,0.00024109,2]
[356000908,1741791050912,-1192.06,0.00024109,2]
[356000909,1741791050923,-500.0,0.00024109,2]
[356000910,1741791050933,-1228.55,0.00024109,2]
[356000911,1741791050943,-869.92,0.00024109,2]
[356000912,1741791050953,-500.0,0.00024109,2]
[356000913,1741791050963,-500.0,0.00024109,2]
[356000914,1741791050972,-731.19,0.00024109,2]
[356000915,1741791050982,-500.0,0.00024109,2]
[356000916,1741791050992,-500.0,0.00024109,2]
[356000917,1741791051001,-567.86,0.00024109,2]
[356000918,1741791051011,-500.0,0.00024109,2]
[356000919,1741791051021,-751.38,0.00024109,2]
[356000920,1741791051030,-500.0,0.00024109,2]
[356000921,1741791051040,-500.0,0.00024109,2]
[356000922,1741791051050,-500.0,0.00024109,2]
[356000923,1741791051060,-664.93,0.00024109,2]
[356000924,1741791051069,-160.0,0.00024109,7]
[356000925,1741791051079,-500.0,0.00024109,2]
[356000926,1741791051089,-1999.74,0.00024109,2]
[356000927,1741791051098,-500.0,0.00024109,2]
[356000928,1741791051108,-593.6,0.00024109,2]
[356000929,1741791051118,-1113.38,0.00024109,2]
[356000930,1741791051128,-500.0,0.00024109,2]
[356000931,1741791051139,-569.98,0.00024109,2]
[356000932,1741791051149,-20933.39,0.00024109,2]
[356000933,1741791051159,-948.89,0.00024109,2]
[356000934,1741791051168,-500.0,0.00024109,2]
[356000935,1741791051179,-500.0,0.00024109,2]
[356000936,1741791051189,-628.97,0.00024109,2]
[356000937,1741791051198,-886.76,0.00024109,2]
[356000938,1741791051208,-1936.07,0.00024109,2]
[356000939,1741791051218,-1000.0,0.00024109,7]
[356000940,1741791051229,-1095.81,0.00024109,2]
[356000941,1741791051239,-416.66666667,0.00024109,7]
[356000942,1741791051249,-931.19,0.00024109,2]
[356000943,1741791051260,-931.69,0.00024109,2]
[356000944,1741791051270,-1444.78,0.00024109,2]
[356000945,1741791051280,-500.0,0.00024109,2]
[356000946,1741791051289,-791.66,0.00024109,2]
[356000947,1741791051302,-2945.61,0.00024109,2]
[356000948,1741791051313,-500.0,0.00024109,2]
[356000949,1741791051322,-500.0,0.00024109,2]
[356000950,1741791051333,-24632.72,0.00024109,2]
[356000951,1741791051343,-815.66,0.00024109,2]
[356000952,1741791051353,-500.0,0.00024109,2]
[356000953,1741791051363,-500.0,0.00024109,2]
[356000954,1741791051378,-770.45,0.00024109,2]
[356000955,1741791051389,-500.0,0.00024109,2]
[356000956,1741791051399,-500.0,0.00024109,2]
[356000957,1741791051410,-6470.55,0.00024109,2]
[356000958,1741791051420,-808.52,0.00024109,2]
[356000959,1741791051430,-15577.25547611,0.00024109,7]
[356000960,1741791051439,-179.56903432,0.00024149,2]
[356000961,1741791051450,-774.16,0.00024383,2]
[356000962,1741791051461,-500.0,0.00024383,2]
[356000963,1741791051470,-155.54301461,0.00024383,2]
[356000964,1741791051479,-557.73771726,0.00024383,2]
[356000965,1741791051491,-500.0,0.00024383,2]
[356000966,1741791051501,-500.0,0.00024383,2]
[356000967,1741791051620,-862.58,0.00024383,2]
[356000968,1741791051643,-1093.17,0.00024383,2]
[356000969,1741791051653,-513.76066397,0.00024383,2]
[356000970,1741791051663,-151.69940185,0.00024383,2]
[356000971,1741791051672,-500.0,0.00024383,2]
[356000972,1741791051682,-624.56,0.00024383,2]
[356000973,1741791051692,-784.42,0.00024383,2]
[356000974,1741791051702,-500.0,0.00024383,2]
[356000975,1741791051711,-500.0,0.00024383,2]
[356000976,1741791051721,-546.45,0.00024383,2]
[356000977,1741791051731,-1192.06,0.00024383,2]
[356000978,1741791051740,-500.0,0.00024383,2]
[356000979,1741791051750,-1228.55,0.00024383,2]
[356000980,1741791051759,-869.92,0.00024383,2]
[356000981,1741791051769,-500.0,0.00024383,2]
[356000982,1741791051779,-500.0,0.00024383,2]
[356000983,1741791051788,-731.19,0.00024383,2]
[356000984,1741791051800,-500.0,0.00024383,2]
[356000985,1741791051809,-500.0,0.00024383,2]
[356000986,1741791051818,-567.86,0.00024383,2]
[356000987,1741791051827,-500.0,0.00024383,2]
[356000988,1741791051837,-751.38,0.00024383,2]
[356000989,1741791051846,-500.0,0.00024383,2]
[356000990,1741791051856,-500.0,0.00024383,2]
[356000991,1741791051865,-500.0,0.00024383,2]
[356000992,1741791051875,-664.93,0.00024383,2]
[356000993,1741791051883,-500.0,0.00024383,2]
[356000994,1741791051893,-1999.74,0.00024383,2]
[356000995,1741791051902,-500.0,0.00024383,2]
[356000996,1741791051911,-593.6,0.00024383,2]
[356000997,1741791051920,-1113.38,0.00024383,2]
[356000998,1741791051930,-500.0,0.00024383,2]
[356000999,1741791051940,-569.98,0.00024383,2]
[356001000,1741791051949,-20933.39,0.00024383,2]
[356001001,1741791051958,-948.89,0.00024383,2]
[356001002,1741791051967,-500.0,0.00024383,2]
[356001003,1741791051977,-500.0,0.00024383,2]
[356001004,1741791051986,-628.97,0.00024383,2]
[356001005,1741791051996,-886.76,0.00024383,2]
[356001006,1741791052006,-1936.07,0.00024383,2]
[356001007,1741791052015,-1000.0,0.00024383,7]
[356001008,1741791052025,-1095.81,0.00024383,2]
[356001009,1741791052035,-931.19,0.00024383,2]
[356001010,1741791052045,-931.69,0.00024383,2]
[356001011,1741791052061,-1444.78,0.00024383,2]
[356001012,1741791052071,-500.0,0.00024383,2]
[356001013,1741791052081,-791.66,0.00024383,2]
[356001014,1741791052091,-2945.61,0.00024383,2]
[356001015,1741791052101,-500.0,0.00024383,2]
[356001016,1741791052110,-500.0,0.00024383,2]
[356001017,1741791052119,-24632.72,0.00024383,2]
[356001018,1741791052129,-815.66,0.00024383,2]
[356001019,1741791052138,-500.0,0.00024383,2]
[356001020,1741791052147,-500.0,0.00024383,2]
[356001021,1741791052156,-770.45,0.00024383,2]
[356001022,1741791052166,-500.0,0.00024383,2]
[356001023,1741791052175,-500.0,0.00024383,2]
[356001024,1741791052185,-6470.55,0.00024383,2]
[356001025,1741791052195,-808.52,0.00024383,2]
[356001026,1741791052204,-4844.9249062,0.00024432,2]
[356001027,1741791052213,-151.0,0.000246,5]
[356001028,1741791052223,-774.16,0.00024657,2]
[356001029,1741791052232,-500.0,0.00024657,2]
[356001030,1741791052241,-500.0,0.00024657,2]
[356001031,1741791052251,-500.0,0.00024657,2]
[356001032,1741791052260,-862.58,0.00024657,2]
[356001033,1741791052269,-1093.17,0.00024657,2]
[356001034,1741791052279,-260.32,0.00024657,2]
[356001035,1741791052288,-500.0,0.00024657,2]
[356001036,1741791052300,-624.56,0.00024657,2]
[356001037,1741791052309,-784.42,0.00024657,2]
[356001038,1741791052319,-500.0,0.00024657,2]
[356001039,1741791052328,-500.0,0.00024657,2]
[356001040,1741791052337,-546.45,0.00024657,2]
[356001041,1741791052347,-1192.06,0.00024657,2]
[356001042,1741791052356,-500.0,0.00024657,2]
[356001043,1741791052366,-1228.55,0.00024657,2]
[356001044,1741791052380,-869.92,0.00024657,2]
[356001045,1741791052389,-500.0,0.00024657,2]
[356001046,1741791052399,-500.0,0.00024657,2]
[356001047,1741791052408,-731.19,0.00024657,2]
[356001048,1741791052418,-500.0,0.00024657,2]
[356001049,1741791052427,-500.0,0.00024657,2]
[356001050,1741791052436,-567.86,0.00024657,2]
[356001051,1741791052446,-500.0,0.00024657,2]
[356001052,1741791052456,-751.38,0.00024657,2]
[356001053,1741791052465,-500.0,0.00024657,2]
[356001054,1741791052475,-500.0,0.00024657,2]
[356001055,1741791052484,-500.0,0.00024657,2]
[356001056,1741791052493,-664.93,0.00024657,2]
[356001057,1741791052503,-500.0,0.00024657,2]
[356001058,1741791052512,-1999.74,0.00024657,2]
[356001059,1741791052521,-500.0,0.00024657,2]
[356001060,1741791052530,-593.6,0.00024657,2]
[356001061,1741791052540,-1113.38,0.00024657,2]
[356001062,1741791052551,-500.0,0.00024657,2]
[356001063,1741791052560,-569.98,0.00024657,2]
[356001064,1741791052569,-20933.39,0.00024657,2]
[356001065,1741791052579,-948.89,0.00024657,2]
[356001066,1741791052588,-500.0,0.00024657,2]
[356001067,1741791052597,-500.0,0.00024657,2]
[356001068,1741791052607,-628.97,0.00024657,2]
[356001069,1741791052616,-886.76,0.00024657,2]
[356001070,1741791052626,-1936.07,0.00024657,2]
[356001071,1741791052635,-1000.0,0.00024657,7]
[356001072,1741791052644,-1095.81,0.00024657,2]
[356001073,1741791052654,-931.19,0.00024657,2]
[356001074,1741791052663,-931.69,0.00024657,2]
[356001075,1741791052673,-1444.78,0.00024657,2]
[356001076,1741791052682,-500.0,0.00024657,2]
[356001077,1741791052691,-791.66,0.00024657,2]
[356001078,1741791052700,-2945.61,0.00024657,2]
[356001079,1741791052710,-500.0,0.00024657,2]
[356001080,1741791052719,-500.0,0.00024657,2]
[356001081,1741791052727,-24632.72,0.00024657,2]
[356001082,1741791052736,-815.66,0.00024657,2]
[356001083,1741791052745,-500.0,0.00024657,2]
[356001084,1741791052754,-500.0,0.00024657,2]
[356001085,1741791052764,-770.45,0.00024657,2]
[356001086,1741791052773,-500.0,0.00024657,2]
[356001087,1741791052782,-500.0,0.00024657,2]
[356001088,1741791052792,-6470.55,0.00024657,2]
[356001089,1741791052802,-808.52,0.00024657,2]
[356001090,1741791052811,-200.0,0.00024658,2]
[356001091,1741791052820,-380.0,0.00024658,2]
[356001092,1741791052829,-500.0,0.00024658,2]
[356001093,1741791052840,-201.23865672,0.00024658,2]
[356001094,1741791052849,-500.0,0.00024658,2]
[356001095,1741791052859,-600.86764469,0.00024735,8]
[356001096,1741791052867,-277.43519169,0.00024873,2]
[356001097,1741791052876,-500.0,0.00024873,2]
[356001098,1741791052885,-500.0,0.00024873,2]
[356001099,1741791052894,-188.48197902,0.00024881,2]
[356001100,1741791052904,-205.0,0.000249,2]
[356001101,1741791052913,-205.0,0.000249,2]
[356001102,1741791052922,-205.0,0.000249,2]
[356001103,1741791052931,-151.0,0.000249,7]
[356001104,1741791052941,-151.0,0.000249,7]
[356001105,1741791052951,-151.0,0.000249,7]
[356001106,1741791052960,-161.402126,0.000249,7]
[356001107,1741791052970,-151.930361,0.000249,7]
[356001108,1741791052979,-346765.18711855,0.000249,2]
[356001109,1741791053108,-5977.75006903,0.000249,2]
[356001110,1741791053258,-362.26474546,0.00021917,2]
[356001111,1741791053612,-588.74525454,0.00021917,2]
[356001112,1741791053621,-500.0,0.00021917,2]
[356001113,1741791053631,-500.0,0.00021917,2]
[356001114,1741791053640,-951.01,0.00022191,2]
[356001115,1741791053649,-500.0,0.00022191,2]
[356001116,1741791053658,-500.0,0.00022191,2]
[356001117,1741791053667,-560.24474546,0.00022465,2]
[356001118,1741791054494,-390.76525454,0.00022465,2]
[356001119,1741791054504,-500.0,0.00022465,2]
[356001120,1741791054513,-500.0,0.00022465,2]
[356001121,1741791054522,-951.01,0.00022739,2]
[356001122,1741791054531,-500.0,0.00022739,2]
[356001123,1741791054540,-500.0,0.00022739,2]
[356001124,1741791054550,-951.01,0.00023013,2]
[356001125,1741791054559,-500.0,0.00023013,2]
[356001126,1741791054568,-500.0,0.00023013,2]
[356001127,1741791054578,-951.01,0.00023287,2]
[356001128,1741791054587,-500.0,0.00023287,2]
[356001129,1741791054596,-500.0,0.00023287,2]
[356001130,1741791054605,-951.01,0.00023561,2]
[356001131,1741791054614,-469.74083341,0.00023561,2]
[356001132,1741791054623,-500.0,0.00023561,2]
[356001133,1741791054632,-1766.1,0.00023835,2]
[356001134,1741791054641,-951.01,0.00023835,2]
[356001135,1741791054651,-1766.1,0.00024109,2]
[356001136,1741791054659,-951.01,0.00024109,2]
[356001137,1741791054668,-1766.1,0.00024383,2]
[356001138,1741791054677,-951.01,0.00024383,2]
[356001139,1741791054686,-1766.1,0.00024657,2]
[356001140,1741791054695,-951.01,0.00024657,2]
[356001141,1741791054704,-131323.97491242,0.000249,2]
[356001142,1741791054713,-774.16,0.00024931,2]
[356001143,1741791054723,-500.0,0.00024931,2]
[356001144,1741791054732,-500.0,0.00024931,2]
[356001145,1741791054741,-862.58,0.00024931,2]
[356001146,1741791054750,-1093.17,0.00024931,2]
[356001147,1741791054759,-500.0,0.00024931,2]
[356001148,1741791054769,-624.56,0.00024931,2]
[356001149,1741791054779,-784.42,0.00024931,2]
[356001150,1741791054789,-500.0,0.00024931,2]
[356001151,1741791054798,-500.0,0.00024931,2]
[356001152,1741791054808,-546.45,0.00024931,2]
[356001153,1741791054818,-1192.06,0.00024931,2]
[356001154,1741791054827,-500.0,0.00024931,2]
[356001155,1741791054836,-1228.55,0.00024931,2]
[356001156,1741791054846,-869.92,0.00024931,2]
[356001157,1741791054856,-586.63938775,0.00024931,2]
[356001158,1741791054865,-500.0,0.00024931,2]
[356001159,1741791054874,-731.19,0.00024931,2]
[356001160,1741791054884,-500.0,0.00024931,2]
[356001161,1741791054892,-567.86,0.00024931,2]
[356001162,1741791054902,-500.0,0.00024931,2]
[356001163,1741791054911,-751.38,0.00024931,2]
[356001164,1741791054920,-500.0,0.00024931,2]
[356001165,1741791054931,-664.93,0.00024931,2]
[356001166,1741791054940,-500.0,0.00024931,2]
[356001167,1741791054950,-1999.74,0.00024931,2]
[356001168,1741791054960,-500.0,0.00024931,2]
[356001169,1741791054969,-593.6,0.00024931,2]
[356001170,1741791054979,-1113.38,0.00024931,2]
[356001171,1741791054988,-500.0,0.00024931,2]